Cogmind - Beta 10.2 @@@ ROGUE MODE // 2022.02.14 @ 05:32:00 Player: Conner Result: Smashed by cave-in Performance ------------- Evolutions (1) 500 Regions Visited (4) 800 Robots Destroyed (64) 320 Value Destroyed (1325) 1325 Prototype IDs (6) 120 Alien Tech Used (0) 0 Bonus (30) 30 TOTAL SCORE: 3095 Bonus ------- High Alert Combat Kills 30 Cogmind --------- Core Integrity 0/400 Matter 273/300 Energy 100/100 System Corruption 19% Temperature Cool (0) Movement Core (350) Ox6 Location -9/Exiles Parts ------- > --- POWER (1) -------- (None) > --- PROPULSION (2) --- (None) > --- UTILITY (4) ------ Large Storage Unit > --- WEAPON (2) ------- High-powered Shotgun > --- INVENTORY (10) --- Improved Ion Engine Improved Ion Engine Heavy Ion Engine Armored Wheel Large Storage Unit EM Shotgun EM Shotgun EM Shotgun High-powered Shotgun High-powered Shotgun Peak State ------------ > --- POWER ------------ Heavy Ion Engine > --- PROPULSION ------- Wheel Armored Wheel > --- UTILITY ---------- Large Storage Unit Structural Scanner Advanced Sensor Array Light Armor Plating > --- WEAPON ----------- Improved Medium Laser High-powered Shotgun > --- INVENTORY -------- Improved Ion Engine Heavy Ion Engine Armored Wheel Large Storage Unit EM Shotgun EM Shotgun EM Shotgun High-powered Shotgun High-powered Shotgun Mining Laser [Rating: 20] Favorites ----------- Power Heavy Ion Engine Engine Heavy Ion Engine Propulsion Wheel Wheel Wheel Utility Large Storage Unit Device Structural Scanner Storage Large Storage Unit Processor Seismic Analyzer Protection Light Armor Plating Weapon High-powered Shotgun Energy Gun Improved Medium Laser Energy Cannon Advanced Beam Cannon Ballistic Gun High-powered Shotgun Launcher Rocket Launcher Special Weapon Mining Laser Build | -11 -10 -9 -9 -9 ------- Run | Scr Mat Mat Min Exi Slots Evolved 2 | . . 2 . . Power . | . . . . . Propulsion . | . . . . . Utility 2 | . . 2 . . Weapon . | . . . . . Parts Attached 65 | 10 11 43 . 1 Power 11 | 1 2 8 . . Engine 11 | 1 2 8 . . Core . | . . . . . Reactor . | . . . . . Propulsion 17 | 3 2 12 . . Treads . | . . . . . Leg . | . . . . . Wheel 17 | 3 2 12 . . Hover . | . . . . . Flight . | . . . . . Utility 16 | 3 3 10 . . Device 7 | 1 2 4 . . Storage 2 | . 1 1 . . Processor 4 | 2 . 2 . . Hackware . | . . . . . Protection 3 | . . 3 . . Artifact . | . . . . . Weapon 21 | 3 4 13 . 1 Energy Gun 8 | 2 2 4 . . Energy Cannon 1 | . . 1 . . Ballistic Gun 10 | 1 2 7 . . Ballistic Cannon . | . . . . . Launcher 1 | . . 1 . . Special Weapon 1 | . . . . 1 Impact Weapon . | . . . . . Slashing Weapon . | . . . . . Piercing Weapon . | . . . . . Special Melee Weapon . | . . . . . Unidentified Prototypes 3 | . . 3 . . Parts Lost 16 | . 5 4 . 7 Power 2 | . 1 . . 1 Propulsion 4 | . 2 . . 2 Utility 5 | . 1 1 . 3 Weapon 5 | . 1 3 . 1 Highest Loss Streak 4 | . 4 2 . 2 Average Slot Usage (%) 95 | . 93 97 100 90 Engine 10 | . 11 10 11 9 Wheel 22 | . 26 21 22 20 Device 17 | . 13 18 22 18 Storage 10 | . 7 11 11 11 Processor 2 | . 6 2 . . Protection 8 | . . 9 11 10 Energy Gun 4 | . 9 5 . . Ballistic Gun 16 | . 16 14 22 18 Naked Turns . | . . . . . Heaviest Build 35 | 8 27 35 35 35 Greatest Support 32 | 26 32 32 22 22 Greatest Overweight (x) 3 | . . 3 1 1 Average Overweight (x) . | . . . 1 1 Largest Inventory Capacity 10 | 4 10 10 10 10 Average Capacity 8 | 4 7 10 10 10 Most Carried 10 | 4 10 10 10 10 Average Carried 8 | 3 6 9 10 10 Final Capacity 10 | 4 10 10 10 10 Final Carried 10 | 4 10 10 10 10 Class Distribution -------------------- 75% | Mutant 24% | Scavenger-Mutant Dominant Class ---------------- Mutant | -10/Materials Mutant | -9/Materials Mutant | -9/Mines Mutant | -9/Exiles Resources | -11 -10 -9 -9 -9 ----------- Run | Scr Mat Mat Min Exi Matter Collected 1494 | 336 249 909 . . Remotely . | . . . . . Salvage Created 1906 | 206 458 1242 . . Parts 139 | 15 21 103 . . Haulers Intercepted 5 | . 1 4 . . Recyclers Shooed 2 | 1 . 1 . . Parts Field Recycled . | . . . . . Retrieved Matter . | . . . . . Parts Self-Destructed . | . . . . . Prevented . | . . . . . Kills | -11 -10 -9 -9 -9 ------- Run | Scr Mat Mat Min Exi Combat Hostiles Destroyed 34 | . 9 25 . . Guns 30 | . 9 21 . . AOE 4 | . . 4 . . Classes Destroyed 11 | 3 4 4 . . Worker 5 | 1 . 4 . . Builder 5 | . . 5 . . Tunneler 5 | 5 . . . . Hauler 5 | . 1 4 . . Recycler 2 | 1 1 . . . Operator 1 | . . 1 . . Watcher 7 | . 2 5 . . Swarmer 9 | . 3 6 . . Grunt 15 | . 6 9 . . Brawler 1 | . . 1 . . Sentry 9 | . . 9 . . Best Kill Streak 6 | 4 3 6 . . Combat Bots Only 4 | . 3 4 . . Max Kills in Single Turn 3 | 1 1 3 . . Gunslinging . | . . . . . Exploded 2 | . . 2 . . Melee . | . . . . . Uniques/NPCs Destroyed . | . . . . . Combat | -11 -10 -9 -9 -9 -------- Run | Scr Mat Mat Min Exi Damage Taken 2565 | 16 621 991 . 937 Core 543 | . 140 194 . 209 Absorbed by Shields . | . . . . . Core Remaining (%) 72 | 100 44 . . . Volleys Fired 214 | 12 74 97 . 31 Largest 2 | 2 2 2 . 1 Hottest 100 | 60 73 93 . 100 Shots Fired 355 | 24 120 181 . 30 Gun 317 | 24 120 167 . 6 Cannon 8 | . . 8 . . Launcher 6 | . . 6 . . Special 24 | . . . . 24 Kinetic 229 | 12 87 124 . 6 Thermal 105 | . 33 48 . 24 Explosive 6 | . . 6 . . Electromagnetic 15 | 12 . 3 . . Robot Hit Streak 8 | 8 5 8 . . Robot Miss Streak 8 | 1 5 8 . . Penetration Max . | . . . . . Secondary Targets 4 | . 1 3 . . Max Gunslinging Chain 1 | . 1 1 . . Shots Hit Robots 203 | 16 72 115 . . Core Hits 98 | 8 21 69 . . Critical Hits 1 | . . 1 . . Critical Kills . | . . . . . Critical Parts Destroyed 1 | . . 1 . . Melee Attacks . | . . . . . Impact . | . . . . . Slashing . | . . . . . Piercing . | . . . . . Sneak Attacks . | . . . . . Combat Hostiles . | . . . . . Follow-up Attacks . | . . . . . Damage Inflicted 3443 | 224 1016 2203 . . Guns 2842 | 201 1016 1625 . . Cannons 21 | . . 21 . . Explosions 580 | 23 . 557 . . Melee . | . . . . . Ramming . | . . . . . Kinetic 1965 | 80 767 1118 . . Thermal 756 | 23 249 484 . . Explosive 557 | . . 557 . . Electromagnetic 165 | 121 . 44 . . Impact . | . . . . . Slashing . | . . . . . Piercing . | . . . . . Highest Corruption 18 | . . 2 2 18 Average Corruption 2 | . . 2 2 3 Corruption Purged . | . . . . . Effects 43 | . . 22 . 21 Message Errors 14 | . . 10 . 4 Matter Fused 2 | . . . . 2 Heat Flow Errors 9 | . . 5 . 4 Energy Discharges 4 | . . 1 . 3 Data Loss (minor) 11 | . . 5 . 6 Targeting Errors 2 | . . 1 . 1 Weapon Failures 1 | . . . . 1 Overload Shots . | . . . . . Overflow Damage 1 | . . 1 . . Projectiles . | . . . . . Explosions 1 | . . 1 . . Melee . | . . . . . Knockbacks . | . . . . . Impact . | . . . . . Kinetic . | . . . . . Secondary . | . . . . . Self-Inflicted Damage 45 | 16 . 29 . . Shots 2 | 1 . 1 . . Rammed . | . . . . . Targets Rammed . | . . . . . Kicked . | . . . . . Crushed . | . . . . . Highest Temperature 353 | 12 47 353 . 246 Average Temperature 74 | 12 17 72 . 96 Received Heat Transfer 606 | . 285 321 . . Effects 5 | . . 2 . 3 Shutdowns 1 | . . 1 . . Energy Bleed 1 | . . . . 1 Interference 2 | . . . . 2 Short Circuit 1 | . . 1 . . Siege Activations . | . . . . . Robots Corrupted . | . . . . . Combat Hostiles . | . . . . . Parts Fried 1 | . . 1 . . Impact Corruptions . | . . . . . Robots Melted . | . . . . . Combat Hostiles . | . . . . . Parts Melted 3 | . 2 1 . . Heat Transferred 1863 | 50 740 1073 . . Parts Sabotaged . | . . . . . Parts Stolen . | . . . . . Parts Stripped . | . . . . . Power Chain Reactions 1 | 1 . . . . Missiles Intercepted . | . . . . . Alert | -11 -10 -9 -9 -9 ------- Run | Scr Mat Mat Min Exi Peak Influence 479 | 35 169 479 146 . Initial 146 | . . 63 146 . Average 194 | 16 88 266 146 . Maximum Alert Level 2 | . . 2 . . Low Security (%) 57 | 100 100 36 100 . Level 1 27 | . . 41 . . Level 2 14 | . . 21 . . Level 3 . | . . . . . Level 4 . | . . . . . Level 5 . | . . . . . High Security . | . . . . . Max Security . | . . . . . Squads Dispatched 6 | . 2 4 . . Investigation 4 | . . 4 . . Extermination . | . . . . . Reinforcement 2 | . 2 . . . Assault . | . . . . . Garrison . | . . . . . Intercept . | . . . . . Construction Impeded . | . . . . . Haulers Reinforced . | . . . . . Stealth | -11 -10 -9 -9 -9 --------- Run | Scr Mat Mat Min Exi Distress Signals 5 | . 2 3 . . Communications Jammed . | . . . . . Distress Signals . | . . . . . Times Spotted 57 | . 17 40 . . Peak Tracking Total 6 | . 4 6 . . Tactical Retreats 4 | . 1 3 . . Traps | -11 -10 -9 -9 -9 ------- Run | Scr Mat Mat Min Exi Traps Triggered 4 | . . 4 . . Indirectly . | . . . . . Trap Hack Attempts . | . . . . . Triggered . | . . . . . Disarmed . | . . . . . Reprogrammed . | . . . . . Reused . | . . . . . Traps Extracted . | . . . . . Installed . | . . . . . Triggered . | . . . . . Machines | -11 -10 -9 -9 -9 ---------- Run | Scr Mat Mat Min Exi Machines Disabled 4 | . . 3 . 1 Max in Single Turn 1 | . . 1 . 1 Machines Sabotaged . | . . . . . Garrisons Compromised . | . . . . . Overloaded Fab Kills . | . . . . . Fab Network Shutdowns . | . . . . . Hacking | -11 -10 -9 -9 -9 --------- Run | Scr Mat Mat Min Exi Machines Accessed 19 | . 2 15 . 2 Terminals 14 | . 2 12 . . Fabricators . | . . . . . Repair Stations . | . . . . . Recycling Units 2 | . . 2 . . Scanalyzers 1 | . . 1 . . Garrison Access . | . . . . . Total Hacks 59 | . 12 43 . 4 Successful 33 | . 7 22 . 4 Failed 26 | . 5 21 . . Catastrophic 2 | . . 2 . . Database Lockouts . | . . . . . Manual 46 | . 12 33 . 1 Terminals 47 | . 12 35 . . Fabricators . | . . . . . Repair Stations . | . . . . . Recycling Units 5 | . . 5 . . Scanalyzers 3 | . . 3 . . Garrison Access . | . . . . . Terminal Hacks 17 | . 3 10 . 4 Record 4 | . . . . 4 Robot Analysis 1 | . . 1 . . Prototype ID Bank 3 | . . 3 . . Terminal Index 2 | . 1 1 . . Alert Level 3 | . 1 2 . . Unreport Threat 1 | . . 1 . . Security Status 1 | . 1 . . . Zone Layout 2 | . . 2 . . Fabricator Hacks . | . . . . . Repair Station Hacks . | . . . . . Recycling Unit Hacks 2 | . . 2 . . Retrieve Components 2 | . . 2 . . Scanalyzer . | . . . . . Garrison Access Hacks . | . . . . . Unauthorized Hacks 14 | . 4 10 . . Terminals 11 | . 4 7 . . Track 2 | . 2 . . . Botnet 9 | . 2 7 . . Fabricators . | . . . . . Repair Stations . | . . . . . Recycling Units 2 | . . 2 . . Reject 2 | . . 2 . . Scanalyzers 1 | . . 1 . . Extract 1 | . . 1 . . Garrison Access . | . . . . . Data Cores Recovered . | . . . . . Used . | . . . . . Hacking Detections 15 | . 2 13 . . Full Trace Events 2 | . . 2 . . Feedback Events . | . . . . . Feedback Blocked . | . . . . . Robot Schematics Acquired . | . . . . . Robots Built . | . . . . . Matter . | . . . . . Time . | . . . . . Total Robot Build Rating . | . . . . . Part Schematics Acquired 11 | . . 11 . . Parts Built . | . . . . . Matter . | . . . . . Time . | . . . . . Total Part Build Rating . | . . . . . Parts Repaired . | . . . . . Time . | . . . . . Parts Recycled . | . . . . . Recycled Matter . | . . . . . Retrieved Matter . | . . . . . Retrieved Components 12 | . . 12 . . Parts Scanalyzed . | . . . . . Part Schematics Acquired . | . . . . . Parts Damaged . | . . . . . Bothacking | -11 -10 -9 -9 -9 ------------ Run | Scr Mat Mat Min Exi Used RIF Installer . | . . . . . Robots Hacked . | . . . . . Non-combat . | . . . . . Combat . | . . . . . Robot Hacks Applied . | . . . . . Relay Couplers Released . | . . . . . Robots Rewired 3 | . . . . 3 Allies Hacked . | . . . . . Hacks Repelled . | . . . . . Allies | -11 -10 -9 -9 -9 -------- Run | Scr Mat Mat Min Exi Total Allies 5 | . . . 2 3 Largest Group 3 | . . . 2 3 Highest-Rated Group 48 | . . . 48 48 Highest-Rated Ally 31 | . . . 31 31 Total Orders . | . . . . . Ally Attacks . | . . . . . Total Damage . | . . . . . Kills . | . . . . . Allies Corrupted . | . . . . . Allies Melted . | . . . . . Intel | -11 -10 -9 -9 -9 ------- Run | Scr Mat Mat Min Exi Robot Analysis Total 1 | . . 1 . . Derelict Logs Recovered . | . . . . . Drone Launches . | . . . . . Drone Recoveries . | . . . . . Exploration | -11 -10 -9 -9 -9 ------------- Run | Scr Mat Mat Min Exi Turns Passed 5050 | 638 646 2548 28 1190 Spaces Moved 3278 | 134 441 1852 15 836 Core 2 | 2 . . . . Treads . | . . . . . Legs . | . . . . . Wheels 3276 | 132 441 1852 15 836 Hover . | . . . . . Flight . | . . . . . Fastest Speed 50 | 50 80 90 95 95 Average Speed 95 | 84 94 97 95 95 Slowest Speed 110 | 100 100 110 95 95 Overloaded Moves . | . . . . . Propulsion Burnouts . | . . . . . Robots Hopped . | . . . . . Cave-ins Triggered 5 | . . . . 5 Exploration Rate (%) 50 | 5 54 96 5 93 Regions Visited 4 Branch Regions 2 Pre-discovered Areas 1 | . . . . 1 Known Exits Taken . | . . . . . Unknown Exits Taken 4 | 1 1 1 1 . Scrap Searched . | . . . . . Spaces Dug 11 | . . . . 11 Terrain Destroyed 54 | 4 . 35 . 15 Melee . | . . . . . Projectile 15 | . . . . 15 AOE 39 | 4 . 35 . . Terrain Rammed . | . . . . . Walls Destroyed . | . . . . . Machines Disabled . | . . . . . Actions | -11 -10 -9 -9 -9 --------- Run | Scr Mat Mat Min Exi Total 4806 | 635 553 2437 28 1153 Wait 1136 | 470 10 392 14 250 Move 3274 | 133 440 1851 14 836 Hop . | . . . . . Pick Up 33 | 6 11 16 . . Fast Attach 27 | 7 4 16 . . Attach 6 | . 2 4 . . Detach . | . . . . . Swap 32 | 3 5 23 . 1 Drop 49 | 4 7 38 . . Fire 214 | 12 74 97 . 31 Melee . | . . . . . Ram . | . . . . . Kick . | . . . . . Crush . | . . . . . Escape Stasis . | . . . . . Rewire 35 | . . . . 35 Trap . | . . . . . Miscellaneous . | . . . . . Route ------- -11/Scrapyard -10/Materials (discovered 2 exits: *Mat / [Min]) -9/Materials (discovered 4 exits: [*Mat x3] / [*Min]) -9/Mines -9/Exiles (discovered 2 exits: [*Min x2]) History --------- Turn | Location | Event 10 | -11/Scrapyard | Discovered new exit (range 16) 639 | -11/Scrapyard | Entered Materials 640 | -10/Materials | Build established: Mutant 656 | -10/Materials | Discovered new exit (range 16) 828 | -10/Materials | Core integrity fell below 50% 846 | -10/Materials | Lost 4 parts (1p2n1w) 1276 | -10/Materials | Discovered new exit (range 6) 1285 | -10/Materials | Entered another Materials area 1285 | -9/Materials | Evolved 2 slots: Utility x2 1603 | -9/Materials | Discovered new exit (range 16) 1810 | -9/Materials | Build established: Scavenger-Mutant 2029 | -9/Materials | Discovered new exit (range 10) 2715 | -9/Materials | Discovered new exit (range 9) 2974 | -9/Materials | Build established: Mutant 2998 | -9/Materials | Discovered new exit (range 4) 3833 | -9/Materials | Entered Mines 3842 | -9/Mines | Deemed a non-threat by the Exiles lab entrance 3843 | -9/Mines | Discovered new exit (range 5) 3861 | -9/Mines | Entered Exiles 3861 | -9/Exiles | Found Exiles lab destroyed 3861 | -9/Exiles | Accompanied by 2 allies 3891 | -9/Exiles | Led the pair of lost Derelicts to a safe place 3971 | -9/Exiles | Learned location of Zion (-6) 4465 | -9/Exiles | Discovered new exit (range 11) 4566 | -9/Exiles | Discovered new exit (range 14) 4808 | -9/Exiles | Crushed by falling debris 4808 | -9/Exiles | Core integrity fell below 50% 4854 | -9/Exiles | Crushed by falling debris 4854 | -9/Exiles | Core integrity fell below 20% 4911 | -9/Exiles | Crushed by falling debris 4911 | -9/Exiles | System corruption reached 10% 5021 | -9/Exiles | Crushed by falling debris 5052 | -9/Exiles | Crushed by falling debris 5052 | -9/Exiles | Smashed by cave-in Last Messages --------------- 04911_ Hvy. Ion Engine destroyed. 04911_ System corrupted by crushing effect (+3). 04911_ Arm. Wheel destroyed. 04911_ System corrupted by crushing effect (+1). 04926_ EMR75ZLWFLNMYNXTASOJQ|/QD2IM7P 04967_ System corrupted: Heat flow error (+242). 04989_ System corrupted: Matter fused (-7). 05016_ R L&,Q270UFIXT|//TQ UYH#ANSSEZPMWBESA 05021_ The unstable cave ceiling collapses. 05021_ Crushed by falling debris. 05021_ Lgt. Armor Plating destroyed. 05021_ System corrupted by crushing effect (+5). 05033_ System corrupted: Component data lost. 05038_ System corrupted: Hpw. Shotgun jammed. 05046_ System corrupted: Hpw. Shotgun targeting data glitched. 05052_ System corrupted: Matter fused (-6). 05052_ The unstable cave ceiling collapses. 05052_ Crushed by falling debris. 05052_ Wheel destroyed. 05052_ System corrupted by crushing effect (+1). Map ----- +----------------------------------------------------+ | | | | | | | | | | | | | | | | | | | | | | | | | | | | | | | | | | | | | | | | | | | | | ????????????????????????###??????????????????????? | | ????????????????????????# #??????????????????????? | | ????????????????????????###??????????????????????? | | ????????????????????????#@#??????????????????????? | | ????????????????????????###??????????????????????? | | ????????????????????????#############????????????? | | ????????????????????????### " #????????????? | | ????????????????????????# "" ####????????????? | | ????????????????????????###" #???????????????? | | ??????????????????????????#" #########???????? | | ??????????????????????????## ##""""""#???????? | | ???????????????????????????# ## """#???????? | | ???????????????????????????# X""#???????? | | ???????????????????????????# ## """#???????? | | ???????????????????######### ##""""""#???????? | | ???????????????????#""""""## #########???????? | | ???????????????????#""" ## #???????????????? | | ???????????????????#""X #???????????????? | | ???????????????????#" #???????????????? | | ???????????????????#" ## #???????????????? | | ?????????????????###" ## #?#########?????? | | ????????????????## ###### #?#"""""""#?????? | | ???????????????## ##???# #?#"""""""#?????? | | ???????????????# #???# ###" """#?????? | | ???????????????# #??## ## ""#?????? | | #??????????????# #??#" ""#?????? | | #??????????????## ##??#" "#?????? | | #???????????????## ##???#" "#?????? | +----------------------------------------------------+ Best States ------------- Heat Dissipation 38 Energy Generation 14 Energy Capacity 280 Matter Stores 300 Matter Capacity 300 Sight Range 16 Robot Scan Range 16 Terrain Scan Range 16 Terrain Scan Density 160 Armor Coverage 150 Evasion (%) 44 Item Schematics ----------------- Seismic Analyzer | -9/Materials | Extracted Terrain Scan Processor | -9/Materials | Extracted Lrg. Matter Pod | -9/Materials | Extracted Med. Storage Unit | -9/Materials | Extracted Mni. Grenade Launcher | -9/Materials | Extracted Com. Wheel | -9/Materials | Extracted Signal Interpreter | -9/Materials | Extracted Particle Cannon | -9/Materials | Extracted Med. Laser | -9/Materials | Extracted Beam Cannon | -9/Materials | Extracted Lgt. Armor Plating | -9/Materials | Extracted Robot Schematics ------------------ None Fabricated ------------ Nothing Alien Tech Used ----------------- None Achievements -------------- None Challenges ------------ None Game ------ Seed StasisBoreWings Manual? 0 Play Time 00:28:11 Cumulative 42.5 hours Start 2022.02.14 @ 05:07:29 End 2022.02.14 @ 05:32:00 Sessions 1 Manual Loads 0 Difficulty Rogue Special Mode None Game No. 70 Rogue 70 Adventurer 0 Explorer 0 Win Type - Total 0 Types 0/0/0/0/0/0/0/0/0 Lore% 51 Gallery% 50 Achievement% 41 Wizard Run 0 Options --------- ASCII 0 Keyboard 0 Movement Numpad Keybinds 0 Fullscreen 1 Font 24/Smallcaps Map View 76x50 Tactical HUD 1 Map Filters NONE Filters NONE Steam 1 RUN: f7243dd8-fc5d-415e-a7e5-9ffb0270a4f9